[Event "*** SCC Grand Prix: Titled Tuesday Blitz"]
[Site "Chess.com"]
[Date "2020.07.21"]
[Round "3"]
[White "Colchonero64"]
[Black "vpsetter"]
[Result "1-0"]
[WhiteElo "2932"]
[BlackElo "2602"]
[TimeControl "180+1"]
[EndTime "10:27:24 PDT"]
[Termination "Colchonero64 won on time"]

1. d4 {[%clk 0:03:00.9]} 1... Nf6 {[%clk 0:02:59.2]} 2. Nf3 {[%clk 0:03:00.3]}
2... d5 {[%clk 0:02:59.3]} 3. Bf4 {[%clk 0:03:00]} 3... c5 {[%clk 0:02:58.2]} 4.
e3 {[%clk 0:02:59.7]} 4... Nc6 {[%clk 0:02:54.8]} 5. Nbd2 {[%clk 0:02:59.5]}
5... cxd4 {[%clk 0:02:50.6]} 6. exd4 {[%clk 0:02:59.3]} 6... Bg4 {[%clk
0:02:46]} 7. c3 {[%clk 0:02:42.1]} 7... e6 {[%clk 0:02:35.2]} 8. Qb3 {[%clk
0:02:41.5]} 8... Qc8 {[%clk 0:01:32]} 9. Bd3 {[%clk 0:02:40.4]} 9... Nh5 {[%clk
0:01:07.1]} 10. Be3 {[%clk 0:02:37.2]} 10... Bxf3 {[%clk 0:01:06.5]} 11. Nxf3
{[%clk 0:02:35.6]} 11... Bd6 {[%clk 0:01:06.8]} 12. g3 {[%clk 0:02:32.3]} 12...
O-O {[%clk 0:01:06.8]} 13. Qc2 {[%clk 0:02:21.6]} 13... f5 {[%clk 0:00:54.7]}
14. g4 {[%clk 0:01:54.8]} 14... Nf4 {[%clk 0:00:53.1]} 15. Bxf4 {[%clk
0:01:43.9]} 15... Bxf4 {[%clk 0:00:54]} 16. gxf5 {[%clk 0:01:43.8]} 16... exf5
{[%clk 0:00:50.6]} 17. Kf1 {[%clk 0:01:43.5]} 17... Qe6 {[%clk 0:00:38]} 18. Re1
{[%clk 0:01:41.6]} 18... Qf6 {[%clk 0:00:38.2]} 19. Qe2 {[%clk 0:01:35.7]} 19...
Rae8 {[%clk 0:00:12.7]} 20. Qxe8 {[%clk 0:01:35.1]} 20... Rxe8 {[%clk
0:00:12.9]} 21. Rxe8+ {[%clk 0:01:35.7]} 21... Kf7 {[%clk 0:00:13.5]} 22. Re2
{[%clk 0:01:34]} 22... Qh6 {[%clk 0:00:07.8]} 23. Bxf5 {[%clk 0:01:26]} 23...
Qh5 {[%clk 0:00:08.2]} 24. Be6+ {[%clk 0:01:24.4]} 24... Kf6 {[%clk 0:00:08.4]}
25. Ne1 {[%clk 0:01:21.4]} 25... Nd8 {[%clk 0:00:06.3]} 26. Bc8 {[%clk
0:01:13.5]} 26... b5 {[%clk 0:00:02.6]} 27. h3 {[%clk 0:01:10.7]} 27... Bd6
{[%clk 0:00:02]} 28. Rg1 {[%clk 0:01:06]} 28... Qh4 {[%clk 0:00:01.5]} 29. Re3
{[%clk 0:00:56.4]} 29... Bf4 {[%clk 0:00:01.2]} 30. Rf3 {[%clk 0:00:50.2]} 1-0

[Event "*** SCC Grand Prix: Titled Tuesday Blitz"]
[Site "Chess.com"]
[Date "2020.07.21"]
[Round "3"]
[White "fabianvivasz"]
[Black "Zenzo"]
[Result "0-1"]
[WhiteElo "2291"]
[BlackElo "2540"]
[TimeControl "180+1"]
[EndTime "10:27:25 PDT"]
[Termination "Zenzo won on time"]

1. e4 {[%clk 0:03:00.9]} 1... e5 {[%clk 0:02:59.9]} 2. Nf3 {[%clk 0:02:59.5]}
2... Nc6 {[%clk 0:03:00.2]} 3. d4 {[%clk 0:02:58.7]} 3... exd4 {[%clk
0:02:59.9]} 4. Bc4 {[%clk 0:02:59.1]} 4... Nf6 {[%clk 0:02:59.6]} 5. e5 {[%clk
0:02:58.9]} 5... d5 {[%clk 0:02:59.8]} 6. Bb5 {[%clk 0:02:59.2]} 6... Ne4 {[%clk
0:02:59.8]} 7. Nxd4 {[%clk 0:02:58.9]} 7... Bd7 {[%clk 0:03:00.3]} 8. Bxc6
{[%clk 0:02:59]} 8... bxc6 {[%clk 0:03:01.2]} 9. O-O {[%clk 0:02:58.9]} 9... Bc5
{[%clk 0:03:01.1]} 10. f3 {[%clk 0:02:57.7]} 10... Ng5 {[%clk 0:03:01.4]} 11. f4
{[%clk 0:02:57.9]} 11... Ne4 {[%clk 0:03:01.1]} 12. Be3 {[%clk 0:02:58]} 12...
Bb6 {[%clk 0:02:59.7]} 13. Nd2 {[%clk 0:02:56.7]} 13... Nxd2 {[%clk 0:02:58]}
14. Qxd2 {[%clk 0:02:57.6]} 14... O-O {[%clk 0:02:52.5]} 15. Nb3 {[%clk
0:02:53.3]} 15... f6 {[%clk 0:02:40.1]} 16. Qc3 {[%clk 0:02:33.3]} 16... fxe5
{[%clk 0:02:31.1]} 17. fxe5 {[%clk 0:02:34.2]} 17... Qe7 {[%clk 0:02:20.2]} 18.
Bc5 {[%clk 0:02:18.6]} 18... Rxf1+ {[%clk 0:02:15]} 19. Rxf1 {[%clk 0:02:17.1]}
19... Re8 {[%clk 0:02:14.2]} 20. a4 {[%clk 0:01:56.7]} 20... a5 {[%clk
0:01:24.6]} 21. Kh1 {[%clk 0:01:38.2]} 21... Qg5 {[%clk 0:01:13.3]} 22. Qd4
{[%clk 0:01:29.3]} 22... h6 {[%clk 0:00:43.9]} 23. Re1 {[%clk 0:01:08.2]} 23...
Bf5 {[%clk 0:00:35]} 24. Re2 {[%clk 0:00:15.2]} 24... Be4 {[%clk 0:00:31.3]} 25.
Bxb6 {[%clk 0:00:09.6]} 25... cxb6 {[%clk 0:00:30.7]} 26. Qxb6 {[%clk
0:00:08.3]} 26... Rxe5 {[%clk 0:00:31.1]} 27. Qxa5 {[%clk 0:00:03.5]} 27... Rf5
{[%clk 0:00:30.3]} 28. Qe1 {[%clk 0:00:03.1]} 28... Qf6 {[%clk 0:00:30.5]} 29.
Kg1 {[%clk 0:00:02.1]} 29... Qxb2 {[%clk 0:00:30.3]} 0-1

[Event "*** SCC Grand Prix: Titled Tuesday Blitz"]
[Site "Chess.com"]
[Date "2020.07.21"]
[Round "3"]
[White "Sn00pPawn"]
[Black "NotFischer"]
[Result "0-1"]
[WhiteElo "1783"]
[BlackElo "2255"]
[TimeControl "180+1"]
[EndTime "10:27:25 PDT"]
[Termination "NotFischer won on time"]

1. e4 {[%clk 0:03:00.9]} 1... d5 {[%clk 0:02:59.7]} 2. exd5 {[%clk 0:03:00.5]}
2... Nf6 {[%clk 0:03:00.1]} 3. d4 {[%clk 0:02:58.9]} 3... Bg4 {[%clk 0:02:59.8]}
4. Nf3 {[%clk 0:02:51.9]} 4... Qxd5 {[%clk 0:02:58.7]} 5. Be2 {[%clk 0:02:52]}
5... Nc6 {[%clk 0:02:57.7]} 6. h3 {[%clk 0:02:19.8]} 6... Bh5 {[%clk 0:01:20.5]}
7. c4 {[%clk 0:01:53.5]} 7... Qd7 {[%clk 0:01:07.5]} 8. g4 {[%clk 0:01:38]} 8...
Bg6 {[%clk 0:01:06.9]} 9. d5 {[%clk 0:01:38]} 9... Nb4 {[%clk 0:00:50.8]} 10.
Na3 {[%clk 0:01:07.2]} 10... O-O-O {[%clk 0:00:41.9]} 11. Ne5 {[%clk 0:01:01]}
11... Qe8 {[%clk 0:00:36.7]} 12. Qb3 {[%clk 0:00:34.9]} 12... e6 {[%clk
0:00:32.7]} 13. Bd2 {[%clk 0:00:16.1]} 13... Na6 {[%clk 0:00:20.7]} 14. Nxg6
{[%clk 0:00:10.9]} 14... hxg6 {[%clk 0:00:20.5]} 15. O-O-O {[%clk 0:00:09.5]}
15... exd5 {[%clk 0:00:18.9]} 16. cxd5 {[%clk 0:00:08.7]} 16... Qxe2 {[%clk
0:00:17.9]} 17. Rhe1 {[%clk 0:00:06.1]} 17... Qxf2 {[%clk 0:00:14.6]} 18. Be3
{[%clk 0:00:04.5]} 18... Qg3 {[%clk 0:00:08.9]} 19. Nb5 {[%clk 0:00:04]} 19...
Bb4 {[%clk 0:00:06.4]} 20. Nxa7+ {[%clk 0:00:01.8]} 20... Kb8 {[%clk 0:00:06.8]}
0-1

[Event "*** SCC Grand Prix: Titled Tuesday Blitz"]
[Site "Chess.com"]
[Date "2020.07.21"]
[Round "3"]
[White "RenarddesSurfaces"]
[Black "1977Ivan"]
[Result "0-1"]
[WhiteElo "2417"]
[BlackElo "2681"]
[TimeControl "180+1"]
[EndTime "10:27:27 PDT"]
[Termination "1977Ivan won on time"]

1. e4 {[%clk 0:03:00.9]} 1... c5 {[%clk 0:02:59.3]} 2. c3 {[%clk 0:02:59.3]}
2... e6 {[%clk 0:02:57]} 3. d4 {[%clk 0:02:58.7]} 3... d5 {[%clk 0:02:57.5]} 4.
exd5 {[%clk 0:02:58.8]} 4... exd5 {[%clk 0:02:56.8]} 5. Nf3 {[%clk 0:02:58.7]}
5... a6 {[%clk 0:02:56.8]} 6. Be2 {[%clk 0:02:55.8]} 6... c4 {[%clk 0:02:54.1]}
7. b3 {[%clk 0:02:53.5]} 7... cxb3 {[%clk 0:02:53.3]} 8. axb3 {[%clk 0:02:53.1]}
8... Bd6 {[%clk 0:02:53]} 9. O-O {[%clk 0:02:53.1]} 9... Ne7 {[%clk 0:02:52.7]}
10. c4 {[%clk 0:02:53.4]} 10... Nbc6 {[%clk 0:02:51.4]} 11. c5 {[%clk
0:02:46.1]} 11... Bc7 {[%clk 0:02:50.7]} 12. Bg5 {[%clk 0:02:45.1]} 12... O-O
{[%clk 0:02:48.8]} 13. Bh4 {[%clk 0:02:30.3]} 13... Bg4 {[%clk 0:02:46.9]} 14.
Bg3 {[%clk 0:02:30]} 14... Bxg3 {[%clk 0:02:41.1]} 15. hxg3 {[%clk 0:02:30.9]}
15... Nf5 {[%clk 0:02:40.2]} 16. Nc3 {[%clk 0:02:23.2]} 16... Re8 {[%clk
0:02:39.9]} 17. Rc1 {[%clk 0:01:35.8]} 17... g6 {[%clk 0:02:32.7]} 18. Re1
{[%clk 0:01:34.7]} 18... h5 {[%clk 0:02:31.6]} 19. Qd3 {[%clk 0:01:06.9]} 19...
Rc8 {[%clk 0:02:26.9]} 20. Rb1 {[%clk 0:00:57.1]} 20... Rc7 {[%clk 0:02:15.8]}
21. b4 {[%clk 0:00:56.3]} 21... Rce7 {[%clk 0:02:15.1]} 22. b5 {[%clk
0:00:39.9]} 22... Bxf3 {[%clk 0:02:03.1]} 23. bxc6 {[%clk 0:00:34.1]} 23... Bxe2
{[%clk 0:01:49.8]} 24. Rxe2 {[%clk 0:00:34]} 24... Rxe2 {[%clk 0:01:48.7]} 25.
Nxe2 {[%clk 0:00:31.4]} 25... bxc6 {[%clk 0:01:47.7]} 26. Qxa6 {[%clk
0:00:30.2]} 26... Re4 {[%clk 0:01:31.2]} 27. Nc3 {[%clk 0:00:21.1]} 27... Re6
{[%clk 0:01:27.7]} 28. Qa7 {[%clk 0:00:17.1]} 28... Qf6 {[%clk 0:01:22.9]} 29.
Rb8+ {[%clk 0:00:15.8]} 29... Kh7 {[%clk 0:01:14.4]} 30. Rf8 {[%clk 0:00:12.4]}
30... Re7 {[%clk 0:01:11.9]} 31. Qb8 {[%clk 0:00:11.8]} 31... Nxd4 {[%clk
0:01:09.1]} 32. Kh2 {[%clk 0:00:06]} 32... h4 {[%clk 0:01:03.5]} 33. g4 {[%clk
0:00:04.8]} 33... Ne6 {[%clk 0:00:57.3]} 34. Rc8 {[%clk 0:00:02.5]} 34... Qxc3
{[%clk 0:00:41.3]} 0-1

[Event "*** SCC Grand Prix: Titled Tuesday Blitz"]
[Site "Chess.com"]
[Date "2020.07.21"]
[Round "3"]
[White "MidnightFox"]
[Black "Mikhail_Golubev"]
[Result "0-1"]
[WhiteElo "2383"]
[BlackElo "2605"]
[TimeControl "180+1"]
[EndTime "10:27:28 PDT"]
[Termination "Mikhail_Golubev won by resignation"]

1. e4 {[%clk 0:02:59.5]} 1... c5 {[%clk 0:02:59.7]} 2. Nf3 {[%clk 0:02:54.4]}
2... d6 {[%clk 0:02:59.8]} 3. Bb5+ {[%clk 0:02:52.9]} 3... Bd7 {[%clk
0:02:58.8]} 4. c4 {[%clk 0:02:53]} 4... Nc6 {[%clk 0:02:49.1]} 5. d4 {[%clk
0:02:50.3]} 5... cxd4 {[%clk 0:02:34.7]} 6. Nxd4 {[%clk 0:02:49.7]} 6... Nf6
{[%clk 0:02:26.7]} 7. Nc3 {[%clk 0:02:49.3]} 7... e6 {[%clk 0:02:16.8]} 8. O-O
{[%clk 0:02:48.4]} 8... Be7 {[%clk 0:02:16.2]} 9. Be3 {[%clk 0:02:40.5]} 9...
O-O {[%clk 0:02:14.2]} 10. Bxc6 {[%clk 0:02:37]} 10... bxc6 {[%clk 0:02:13.6]}
11. Qd2 {[%clk 0:02:36]} 11... e5 {[%clk 0:02:05.2]} 12. Nc2 {[%clk 0:02:32.5]}
12... Be6 {[%clk 0:02:05.2]} 13. b3 {[%clk 0:02:32.5]} 13... d5 {[%clk
0:02:05.2]} 14. exd5 {[%clk 0:02:31.2]} 14... cxd5 {[%clk 0:02:05.1]} 15. cxd5
{[%clk 0:02:31.3]} 15... Nxd5 {[%clk 0:02:04.7]} 16. Nxd5 {[%clk 0:02:31.4]}
16... Qxd5 {[%clk 0:02:03.5]} 17. Rfd1 {[%clk 0:02:27.5]} 17... Qxd2 {[%clk
0:01:48.3]} 18. Rxd2 {[%clk 0:02:28.4]} 18... f5 {[%clk 0:01:48.4]} 19. f3
{[%clk 0:02:21.5]} 19... a5 {[%clk 0:01:43.1]} 20. Re1 {[%clk 0:02:07.9]} 20...
a4 {[%clk 0:01:41.2]} 21. Bf2 {[%clk 0:02:07.3]} 21... axb3 {[%clk 0:01:39.4]}
22. axb3 {[%clk 0:02:08.2]} 22... Bxb3 {[%clk 0:01:34.9]} 23. Rxe5 {[%clk
0:01:59.5]} 23... Bf6 {[%clk 0:01:34.2]} 24. Ree2 {[%clk 0:01:56.4]} 24... Bc3
{[%clk 0:01:26.1]} 25. Rd3 {[%clk 0:01:43.8]} 25... Bc4 {[%clk 0:01:25.1]} 26.
Rxc3 {[%clk 0:01:38.5]} 26... Bxe2 {[%clk 0:01:24.8]} 27. h3 {[%clk 0:01:37.9]}
27... Rac8 {[%clk 0:01:21.6]} 28. Rxc8 {[%clk 0:01:34.1]} 28... Rxc8 {[%clk
0:01:21.4]} 29. Nd4 {[%clk 0:01:35]} 29... Bd3 {[%clk 0:01:21.3]} 30. g4 {[%clk
0:01:31.8]} 30... f4 {[%clk 0:01:16.4]} 31. Ne6 {[%clk 0:01:27.3]} 31... Rc4
{[%clk 0:01:15.2]} 32. Bd4 {[%clk 0:01:23.7]} 32... Kf7 {[%clk 0:01:08.4]} 33.
Ng5+ {[%clk 0:01:17.7]} 33... Kg6 {[%clk 0:01:08.3]} 34. Ne6 {[%clk 0:01:15.6]}
34... Kf7 {[%clk 0:00:37]} 35. Ng5+ {[%clk 0:01:14.8]} 35... Kg8 {[%clk
0:00:36.8]} 36. Ne6 {[%clk 0:01:10.4]} 36... g5 {[%clk 0:00:30.2]} 37. Be5
{[%clk 0:00:49.4]} 37... Rc1+ {[%clk 0:00:26.4]} 38. Kf2 {[%clk 0:00:47.8]}
38... Rf1+ {[%clk 0:00:21.3]} 39. Kg2 {[%clk 0:00:48]} 39... Re1 {[%clk
0:00:20.7]} 40. Nc5 {[%clk 0:00:42.6]} 40... Bf1+ {[%clk 0:00:20.5]} 41. Kf2
{[%clk 0:00:39.5]} 41... Rxe5 {[%clk 0:00:21]} 0-1

[Event "*** SCC Grand Prix: Titled Tuesday Blitz"]
[Site "Chess.com"]
[Date "2020.07.21"]
[Round "3"]
[White "Zhuu96"]
[Black "WildTricks"]
[Result "1-0"]
[WhiteElo "2799"]
[BlackElo "2513"]
[TimeControl "180+1"]
[EndTime "10:27:29 PDT"]
[Termination "Zhuu96 won by resignation"]

1. Nf3 {[%clk 0:03:00.6]} 1... Nf6 {[%clk 0:02:58.9]} 2. e3 {[%clk 0:03:00.7]}
2... b6 {[%clk 0:02:57.9]} 3. b3 {[%clk 0:02:58.6]} 3... Bb7 {[%clk 0:02:58.5]}
4. Bb2 {[%clk 0:02:59.2]} 4... g6 {[%clk 0:02:59.1]} 5. c4 {[%clk 0:02:59.2]}
5... Bg7 {[%clk 0:02:59.2]} 6. Be2 {[%clk 0:02:58.6]} 6... O-O {[%clk
0:02:59.7]} 7. O-O {[%clk 0:02:58.9]} 7... c5 {[%clk 0:03:00.3]} 8. Nc3 {[%clk
0:02:57.5]} 8... d5 {[%clk 0:02:59.5]} 9. Nxd5 {[%clk 0:02:52.6]} 9... Nxd5
{[%clk 0:02:58.2]} 10. Bxg7 {[%clk 0:02:52.2]} 10... Kxg7 {[%clk 0:02:56.1]} 11.
cxd5 {[%clk 0:02:52.2]} 11... Qxd5 {[%clk 0:02:56.6]} 12. Qc1 {[%clk 0:02:51.7]}
12... Nc6 {[%clk 0:02:55]} 13. Qb2+ {[%clk 0:02:51.3]} 13... f6 {[%clk
0:02:54.4]} 14. Rfd1 {[%clk 0:02:48.9]} 14... Rfd8 {[%clk 0:02:51.4]} 15. a3
{[%clk 0:02:43]} 15... e5 {[%clk 0:02:46.7]} 16. b4 {[%clk 0:02:41.7]} 16... c4
{[%clk 0:02:44.3]} 17. Rac1 {[%clk 0:02:35.7]} 17... b5 {[%clk 0:02:43.8]} 18.
d3 {[%clk 0:02:35.4]} 18... cxd3 {[%clk 0:02:28.8]} 19. Rxd3 {[%clk 0:02:32.9]}
19... Qe6 {[%clk 0:02:10.3]} 20. Rxd8 {[%clk 0:02:32.5]} 20... Rxd8 {[%clk
0:02:11.2]} 21. Bxb5 {[%clk 0:02:32.7]} 21... Rd6 {[%clk 0:01:58.5]} 22. h3
{[%clk 0:02:30.1]} 22... g5 {[%clk 0:01:42.9]} 23. Qe2 {[%clk 0:02:26.6]} 23...
g4 {[%clk 0:01:40]} 24. hxg4 {[%clk 0:02:23]} 24... Qxg4 {[%clk 0:01:39.2]} 25.
Rc4 {[%clk 0:01:41.3]} 25... Qh5 {[%clk 0:01:19.5]} 26. Rh4 {[%clk 0:01:24]}
26... Qg6 {[%clk 0:01:17.8]} 27. Ne1 {[%clk 0:01:15.1]} 27... Kh8 {[%clk
0:01:04.6]} 28. Bd3 {[%clk 0:01:13.2]} 28... f5 {[%clk 0:00:41.4]} 29. Qc2
{[%clk 0:01:12.7]} 29... e4 {[%clk 0:00:30.3]} 30. Be2 {[%clk 0:01:09.7]} 30...
Qf6 {[%clk 0:00:24.4]} 31. Rf4 {[%clk 0:01:09.5]} 31... Kg7 {[%clk 0:00:16.9]}
32. Qc5 {[%clk 0:01:05.6]} 32... Ne7 {[%clk 0:00:14.7]} 33. Qxa7 {[%clk
0:01:04.6]} 33... Bd5 {[%clk 0:00:13.8]} 34. Rxf5 {[%clk 0:01:02.7]} 34... Qe6
{[%clk 0:00:08]} 35. Rg5+ {[%clk 0:01:00.7]} 35... Kf6 {[%clk 0:00:07.6]} 36.
Rh5 {[%clk 0:01:01]} 36... Kg6 {[%clk 0:00:07.8]} 37. g3 {[%clk 0:01:01.4]}
37... Rd7 {[%clk 0:00:05.1]} 38. Qc5 {[%clk 0:00:58.7]} 38... Rd6 {[%clk
0:00:03.6]} 39. Ng2 {[%clk 0:00:58.4]} 39... Rc6 {[%clk 0:00:03.2]} 40. Nf4+
{[%clk 0:00:58.1]} 1-0

[Event "*** SCC Grand Prix: Titled Tuesday Blitz"]
[Site "Chess.com"]
[Date "2020.07.21"]
[Round "3"]
[White "GigaQuparadze"]
[Black "knightmare7724"]
[Result "1-0"]
[WhiteElo "2868"]
[BlackElo "2596"]
[TimeControl "180+1"]
[EndTime "10:27:29 PDT"]
[Termination "GigaQuparadze won by resignation"]

1. e4 {[%clk 0:03:00.9]} 1... e5 {[%clk 0:02:58.3]} 2. Nf3 {[%clk 0:03:00.4]}
2... Nc6 {[%clk 0:02:59]} 3. Bb5 {[%clk 0:03:00.8]} 3... a6 {[%clk 0:02:59.5]}
4. Ba4 {[%clk 0:03:01]} 4... Nf6 {[%clk 0:02:59.3]} 5. Nc3 {[%clk 0:03:01.5]}
5... b5 {[%clk 0:02:57.2]} 6. Bb3 {[%clk 0:03:01.5]} 6... Be7 {[%clk 0:02:56.4]}
7. O-O {[%clk 0:02:54.7]} 7... d6 {[%clk 0:02:56.6]} 8. Nd5 {[%clk 0:02:54.3]}
8... O-O {[%clk 0:02:52.8]} 9. Nxf6+ {[%clk 0:02:52.6]} 9... Bxf6 {[%clk
0:02:52.3]} 10. c3 {[%clk 0:02:53.5]} 10... Na5 {[%clk 0:02:50.8]} 11. Bc2
{[%clk 0:02:51.4]} 11... c5 {[%clk 0:02:50.6]} 12. h3 {[%clk 0:02:51.2]} 12...
Bb7 {[%clk 0:02:38.9]} 13. d4 {[%clk 0:02:49.7]} 13... cxd4 {[%clk 0:02:36.2]}
14. cxd4 {[%clk 0:02:50.6]} 14... Rc8 {[%clk 0:02:33.5]} 15. d5 {[%clk 0:02:49]}
15... Qc7 {[%clk 0:02:26.1]} 16. Bd3 {[%clk 0:02:48.9]} 16... Qb8 {[%clk
0:02:05.7]} 17. b3 {[%clk 0:02:45.8]} 17... Ba8 {[%clk 0:01:57.1]} 18. Nh2
{[%clk 0:02:44.9]} 18... g6 {[%clk 0:01:49.9]} 19. Ng4 {[%clk 0:02:43.4]} 19...
Bg7 {[%clk 0:01:50.3]} 20. Ne3 {[%clk 0:02:43.6]} 20... Nb7 {[%clk 0:01:48.1]}
21. b4 {[%clk 0:02:43.3]} 21... Rc3 {[%clk 0:01:40.7]} 22. Bb2 {[%clk
0:02:41.9]} 22... Rc7 {[%clk 0:01:40.6]} 23. a4 {[%clk 0:02:41.8]} 23... bxa4
{[%clk 0:01:23.7]} 24. Rxa4 {[%clk 0:02:42.7]} 24... a5 {[%clk 0:01:24.4]} 25.
b5 {[%clk 0:02:15.3]} 25... Rfc8 {[%clk 0:01:02.2]} 26. Ba3 {[%clk 0:02:06.5]}
26... Bh6 {[%clk 0:00:55]} 27. Nc4 {[%clk 0:02:05]} 27... Nc5 {[%clk 0:00:45.9]}
28. Bxc5 {[%clk 0:02:03.9]} 28... Rxc5 {[%clk 0:00:46.8]} 29. Nxa5 {[%clk
0:02:04.4]} 29... Rc1 {[%clk 0:00:36.4]} 30. Qf3 {[%clk 0:02:04]} 30... Rxf1+
{[%clk 0:00:30.8]} 31. Bxf1 {[%clk 0:02:04.9]} 31... Rc1 {[%clk 0:00:30.1]} 32.
Qd3 {[%clk 0:02:04.7]} 32... Bg5 {[%clk 0:00:19.9]} 33. Nc6 {[%clk 0:02:03.5]}
33... Bxc6 {[%clk 0:00:19.2]} 34. dxc6 {[%clk 0:02:04.1]} 34... Bd8 {[%clk
0:00:15.6]} 35. Ra2 {[%clk 0:01:51.5]} 35... Bb6 {[%clk 0:00:14.7]} 36. Rc2
{[%clk 0:01:51.6]} 36... Ra1 {[%clk 0:00:13.1]} 37. g3 {[%clk 0:01:50.1]} 37...
Kg7 {[%clk 0:00:13.1]} 38. Kg2 {[%clk 0:01:50]} 38... Qc7 {[%clk 0:00:13]} 39.
Qf3 {[%clk 0:01:50.1]} 39... Ra5 {[%clk 0:00:12.8]} 40. Bc4 {[%clk 0:01:49.9]}
40... h5 {[%clk 0:00:12.9]} 41. Rd2 {[%clk 0:01:49.9]} 41... Ra4 {[%clk
0:00:13.3]} 42. Qd3 {[%clk 0:01:42]} 42... Bd4 {[%clk 0:00:13.3]} 43. Qb3 {[%clk
0:01:41.6]} 43... Ra5 {[%clk 0:00:12.6]} 44. Bd5 {[%clk 0:01:39.5]} 44... Bc5
{[%clk 0:00:12.6]} 45. Rc2 {[%clk 0:01:38.7]} 45... Ra3 {[%clk 0:00:12.5]} 46.
Qb2 {[%clk 0:01:38.3]} 46... Ra8 {[%clk 0:00:11.4]} 47. Rxc5 {[%clk 0:01:37.8]}
47... dxc5 {[%clk 0:00:10.5]} 48. b6 {[%clk 0:01:38]} 48... Qd6 {[%clk
0:00:10.9]} 49. c7 {[%clk 0:01:36.7]} 49... Rf8 {[%clk 0:00:08.8]} 50. Qb5
{[%clk 0:01:30.4]} 50... c4 {[%clk 0:00:06]} 51. Qxc4 {[%clk 0:01:29.9]} 51...
f5 {[%clk 0:00:05.8]} 52. b7 {[%clk 0:01:29.2]} 52... fxe4 {[%clk 0:00:05.3]}
53. c8=Q {[%clk 0:01:27.5]} 53... Rxf2+ {[%clk 0:00:04.7]} 54. Kxf2 {[%clk
0:01:26.9]} 54... Qb6+ {[%clk 0:00:05.4]} 55. Q8c5 {[%clk 0:01:26.3]} 55... Qb2+
{[%clk 0:00:05.4]} 56. Qc2 {[%clk 0:01:26.3]} 56... e3+ {[%clk 0:00:06]} 57.
Kxe3 {[%clk 0:01:25.5]} 1-0

[Event "*** SCC Grand Prix: Titled Tuesday Blitz"]
[Site "Chess.com"]
[Date "2020.07.21"]
[Round "3"]
[White "GMJustin"]
[Black "White_Ghost"]
[Result "0-1"]
[WhiteElo "2293"]
[BlackElo "2543"]
[TimeControl "180+1"]
[EndTime "10:27:31 PDT"]
[Termination "White_Ghost won on time"]

1. e4 {[%clk 0:02:55.5]} 1... e5 {[%clk 0:02:58.9]} 2. Nc3 {[%clk 0:02:54.3]}
2... Nf6 {[%clk 0:02:56.1]} 3. Nf3 {[%clk 0:02:54.2]} 3... Nc6 {[%clk
0:02:55.9]} 4. Bb5 {[%clk 0:02:54.1]} 4... Bc5 {[%clk 0:02:55.2]} 5. O-O {[%clk
0:02:52]} 5... d6 {[%clk 0:02:50.8]} 6. d4 {[%clk 0:02:49.3]} 6... exd4 {[%clk
0:02:45.7]} 7. Nxd4 {[%clk 0:02:47.4]} 7... Bd7 {[%clk 0:02:46]} 8. Be3 {[%clk
0:02:31.7]} 8... Bb6 {[%clk 0:02:24.8]} 9. Bxc6 {[%clk 0:02:22.9]} 9... bxc6
{[%clk 0:02:22.8]} 10. f3 {[%clk 0:02:16.8]} 10... O-O {[%clk 0:02:21.6]} 11.
Qd2 {[%clk 0:02:15.3]} 11... Re8 {[%clk 0:02:17.9]} 12. Kh1 {[%clk 0:01:56.3]}
12... Rb8 {[%clk 0:02:17.1]} 13. Rad1 {[%clk 0:01:41.2]} 13... Qe7 {[%clk
0:02:10.2]} 14. Bg5 {[%clk 0:01:21.9]} 14... h6 {[%clk 0:02:06.6]} 15. Bh4
{[%clk 0:01:13.6]} 15... Qe5 {[%clk 0:01:48.5]} 16. Nde2 {[%clk 0:00:56.1]}
16... Bc8 {[%clk 0:01:14.7]} 17. Nc1 {[%clk 0:00:38.8]} 17... Ba6 {[%clk
0:01:11.4]} 18. Nd3 {[%clk 0:00:37.9]} 18... Bxd3 {[%clk 0:01:05.2]} 19. Qxd3
{[%clk 0:00:34.2]} 19... Nh5 {[%clk 0:01:05.3]} 20. Be1 {[%clk 0:00:23]} 20...
Nf4 {[%clk 0:01:03.1]} 21. Qd2 {[%clk 0:00:22.4]} 21... Qf6 {[%clk 0:00:55.5]}
22. g3 {[%clk 0:00:20.6]} 22... Ne6 {[%clk 0:00:54.8]} 23. Kg2 {[%clk
0:00:17.6]} 23... Ba5 {[%clk 0:00:48.4]} 24. b3 {[%clk 0:00:07.3]} 24... h5
{[%clk 0:00:44.4]} 25. Qe3 {[%clk 0:00:05.8]} 25... h4 {[%clk 0:00:40.6]} 26.
Ne2 {[%clk 0:00:05.8]} 26... Bb6 {[%clk 0:00:38.1]} 27. Qd3 {[%clk 0:00:04.1]}
27... h3+ {[%clk 0:00:35.6]} 28. Kh1 {[%clk 0:00:03]} 28... Nc5 {[%clk
0:00:32.1]} 29. Qc4 {[%clk 0:00:01.6]} 29... Nxe4 {[%clk 0:00:29.6]} 0-1

[Event "*** SCC Grand Prix: Titled Tuesday Blitz"]
[Site "Chess.com"]
[Date "2020.07.21"]
[Round "3"]
[White "vova-79"]
[Black "Speshka"]
[Result "1-0"]
[WhiteElo "2491"]
[BlackElo "2226"]
[TimeControl "180+1"]
[EndTime "10:27:31 PDT"]
[Termination "vova-79 won by resignation"]

1. d4 {[%clk 0:03:00.9]} 1... Nf6 {[%clk 0:02:58.6]} 2. c4 {[%clk 0:03:00.8]}
2... g6 {[%clk 0:02:58.5]} 3. Nc3 {[%clk 0:03:00.1]} 3... Bg7 {[%clk 0:02:58.5]}
4. Nf3 {[%clk 0:03:00.2]} 4... O-O {[%clk 0:02:57.7]} 5. g3 {[%clk 0:03:00.3]}
5... d6 {[%clk 0:02:57.5]} 6. Bg2 {[%clk 0:03:00.4]} 6... Nbd7 {[%clk 0:02:57]}
7. O-O {[%clk 0:03:00.2]} 7... c6 {[%clk 0:02:47.6]} 8. e4 {[%clk 0:02:58.1]}
8... e5 {[%clk 0:02:46.6]} 9. h3 {[%clk 0:02:57.9]} 9... exd4 {[%clk 0:02:43.3]}
10. Nxd4 {[%clk 0:02:58.1]} 10... Re8 {[%clk 0:02:41.4]} 11. Be3 {[%clk
0:02:56.3]} 11... Nc5 {[%clk 0:02:38.6]} 12. Qc2 {[%clk 0:02:56.4]} 12... a5
{[%clk 0:02:35.3]} 13. Rad1 {[%clk 0:02:55.4]} 13... Qe7 {[%clk 0:02:33.1]} 14.
Rfe1 {[%clk 0:02:50.5]} 14... Bd7 {[%clk 0:02:09]} 15. Bf4 {[%clk 0:02:04.9]}
15... Nh5 {[%clk 0:01:49.2]} 16. Nxc6 {[%clk 0:01:49.3]} 16... Bxc6 {[%clk
0:01:42.4]} 17. Bxd6 {[%clk 0:01:47.8]} 17... Qg5 {[%clk 0:01:34.3]} 18. h4
{[%clk 0:01:46]} 18... Qg4 {[%clk 0:01:18.7]} 19. Bxc5 {[%clk 0:01:43.7]} 19...
Rad8 {[%clk 0:01:16.8]} 20. Rxd8 {[%clk 0:01:27.3]} 20... Rxd8 {[%clk
0:01:16.3]} 21. Nd5 {[%clk 0:01:26.1]} 21... Qe6 {[%clk 0:00:56.8]} 22. b3
{[%clk 0:01:08.2]} 22... Nf6 {[%clk 0:00:52.9]} 23. Ne7+ {[%clk 0:00:46]} 23...
Kh8 {[%clk 0:00:51.7]} 24. Nxc6 {[%clk 0:00:46.2]} 24... bxc6 {[%clk 0:00:43.5]}
25. Bb6 {[%clk 0:00:43.8]} 25... Ra8 {[%clk 0:00:43]} 26. e5 {[%clk 0:00:41.8]}
26... Nd7 {[%clk 0:00:42.5]} 27. Bd4 {[%clk 0:00:37.7]} 27... Nxe5 {[%clk
0:00:36.7]} 28. Qe4 {[%clk 0:00:33.8]} 28... Re8 {[%clk 0:00:27.1]} 29. f4
{[%clk 0:00:27]} 29... Nf3+ {[%clk 0:00:25.2]} 30. Bxf3 {[%clk 0:00:26.6]} 30...
Bxd4+ {[%clk 0:00:21.2]} 31. Qxd4+ {[%clk 0:00:25.6]} 1-0